bitfinex/quotes_SOLUSD_20241013
["timestamp","ask_amount","ask_price","bid_price","bid_amount"]
[1728861464970,23.776884,147.42,147.41,6.7834]
[1728861465557,6.7819,147.45,147.41,6.7834]
[1728861465773,23.776884,147.43,147.41,6.7834]
[1728861466669,23.776884,147.44,147.41,6.7834]
[1728861466876,1.34983391,147.43,147.41,6.7834]
[1728861468352,23.776884,147.44,147.41,6.7834]
[1728861468554,1.34983391,147.43,147.41,6.7834]
[1728861476866,23.776884,147.44,147.41,6.7834]
[1728861477068,6.7815,147.46,147.41,6.7834]
[1728861477069,23.776884,147.45,147.41,6.7834]
[1728861477271,25.12671791,147.45,147.41,6.7834]
[1728861481183,25.12671791,147.45,147.39,28.107849]
[1728861481369,23.776884,147.43,147.4,10.24375134]
[1728861482280,23.776884,147.43,147.41,3.45955134]
[1728861482579,23.776884,147.44,147.41,3.45955134]
[1728861482783,25.12671791,147.44,147.41,3.45955134]
[1728861483784,1.34983391,147.43,147.41,3.45955134]
[1728861484274,1.34983391,147.43,147.4,6.7842]
[1728861484485,1.34983391,147.43,147.41,3.46288452]
[1728861484702,1.34983391,147.43,147.4,6.7842]
[1728861484872,1.34983391,147.43,147.41,3.46288386]
[1728861485068,1.34983391,147.43,147.4,6.7842]
[1728861485275,25.12671791,147.43,147.41,3.46440864]
[1728861485473,25.12671791,147.43,147.42,3.46440864]
[1728861486592,23.776884,147.43,147.42,3.46440864]
[1728861487257,23.776884,147.43,147.41,6.7837]
[1728861487480,23.776884,147.44,147.42,3.46851826]
[1728861487680,25.12671791,147.44,147.43,3.46851826]
[1728861488575,23.776884,147.44,147.43,3.46851826]
[1728861490104,8.13043391,147.48,147.43,10.25091826]
[1728861490264,8.13043391,147.48,147.44,10.25091826]
[1728861490465,8.13043391,147.48,147.43,11.146449]
[1728861490667,8.13043391,147.48,147.44,3.46835906]
[1728861490892,8.13043391,147.48,147.43,6.7827]
[1728861491064,8.13043391,147.48,147.44,3.46836927]
[1728861491263,1.34983391,147.48,147.44,3.46832967]
[1728861491578,30.557984,147.47,147.43,6.7827]
[1728861491782,1.34983391,147.46,147.43,6.7827]
[1728861492470,1.34983391,147.46,147.44,3.46830324]
[1728861492669,1.34983391,147.46,147.43,6.7827]
[1728861492997,1.34983391,147.46,147.44,3.46821081]
[1728861493197,1.34983391,147.46,147.43,6.7827]
[1728861493486,1.34983391,147.46,147.44,3.4681897]
[1728861493675,1.34983391,147.46,147.43,6.7827]
[1728861493873,1.34983391,147.46,147.44,3.46819707]
[1728861494199,25.12671791,147.48,147.45,6.7818]
[1728861494567,25.12671791,147.48,147.46,3.4676906]
[1728861494902,25.12671791,147.48,147.45,6.7818]
[1728861495066,25.12671791,147.48,147.46,3.46769316]
[1728861495666,25.12671791,147.48,147.44,6.7823]
[1728861495861,25.12671791,147.48,147.45,3.46687264]
[1728861496085,25.12671791,147.48,147.46,3.46687264]
[1728861496382,25.12671791,147.48,147.44,6.7823]
[1728861496583,25.12671791,147.48,147.45,3.46625375]
[1728861496794,25.12671791,147.48,147.46,3.46625375]
[1728861496996,25.12671791,147.48,147.43,16.9564]
[1728861497188,30.558484,147.46,147.44,3.4662326]
[1728861497384,1.34983391,147.45,147.4,43.465049]
[1728861497577,1.34983391,147.45,147.41,10.24988619]
[1728861497776,1.34983391,147.45,147.42,3.46628619]
[1728861498005,1.34983391,147.45,147.43,3.46628619]
[1728861498200,1.34983391,147.45,147.44,3.46628619]
[1728861498201,25.12671791,147.45,147.44,3.46628619]
[1728861502305,31.90861791,147.45,147.44,3.46628619]
[1728861503789,23.776884,147.44,147.41,3.46628619]
[1728861503990,30.560584,147.42,147.36,7.6311797]
[1728861504195,23.3356,147.48,147.37,3.46626296]
[1728861504196,23.776884,147.4,147.37,3.46626296]
[1728861504400,25.12671791,147.39,147.38,3.46626296]
[1728861506502,23.776884,147.39,147.38,3.46626296]
[1728861509816,25.12671791,147.39,147.38,3.46626296]
[1728861511208,23.776884,147.38,147.37,3.46626296]
[1728861511420,25.12671791,147.38,147.37,3.46626296]
[1728861512202,25.12671791,147.38,147.36,4.31174266]
[1728861512389,23.776884,147.39,147.36,4.31174266]
[1728861512590,1.34983391,147.38,147.36,4.31174266]
[1728861513995,1.34983391,147.38,147.36,4.30635991]
[1728861514995,1.34983391,147.38,147.36,4.30552554]
[1728861515295,1.34983391,147.38,147.36,0.8454797]
[1728861520220,23.776884,147.37,147.36,0.8454797]
[1728861520393,31.91231791,147.37,147.36,0.8454797]
[1728861524794,31.91231791,147.37,147.26,16.9764]
[1728861524795,16.5492,147.36,147.26,16.9764]
[1728861525027,23.776884,147.31,147.27,6.7901]
[1728861525222,23.776884,147.29,147.27,6.7901]
[1728861525804,6.7875,147.33,147.28,17.936149]
[1728861526108,23.776884,147.31,147.29,6.7891]
[1728861527127,23.776884,147.31,147.3,6.7888]
[1728861529314,23.776884,147.31,147.3,6.2888]
[1728861536431,23.776884,147.32,147.31,6.7884]
[1728861536738,1.34983391,147.33,147.31,6.7884]
[1728861536942,1.34983391,147.33,147.29,11.146449]
[1728861537141,1.34983391,147.33,147.3,6.7888]
[1728861537435,25.12671791,147.34,147.3,6.7888]
[1728861537829,31.91411791,147.34,147.29,6.7892]
[1728861539238,6.7879,147.32,147.28,23.7634]
[1728861539416,25.12671791,147.31,147.28,23.2634]
[1728861542036,23.776884,147.31,147.29,19.29339659]
[1728861542344,23.776884,147.32,147.3,6.7887]
[1728861542732,23.776884,147.32,147.3,23.7597]
[1728861542942,23.776884,147.33,147.3,23.7597]
[1728861543238,23.776884,147.33,147.31,6.7883]
[1728861543941,1.34983391,147.32,147.3,16.971]
[1728861544519,23.776884,147.31,147.28,6.7896]
[1728861544724,1.34983391,147.3,147.26,6.6447]
[1728861544924,23.776884,147.29,147.27,6.7898]
[1728861545139,23.776884,147.29,147.27,23.765]
[1728861545647,23.776884,147.29,147.25,6.791]
[1728861546017,23.776884,147.29,147.26,6.7907]
[1728861546218,30.565784,147.3,147.25,6.7911]
[1728861546625,23.776884,147.28,147.25,6.7911]
[1728861547142,1.34983391,147.27,147.25,6.7911]
[1728861549044,23.776884,147.28,147.26,11.146449]
[1728861549222,23.776884,147.28,147.27,6.7902]
[1728861556547,1.34983391,147.31,147.27,11.146449]
[1728861556750,8.13643391,147.35,147.3,6.7888]
[1728861557533,6.7875,147.33,147.28,16.9737]
[1728861557726,1.34983391,147.32,147.28,16.9737]
[1728861557935,23.776884,147.31,147.28,23.2634]
[1728861558224,23.776884,147.29,147.28,34.409849]
[1728861559030,23.776884,147.31,147.28,34.409849]
[1728861559851,1.34983391,147.3,147.28,23.2634]
[1728861560051,23.776884,147.29,147.28,23.2634]
[1728861563327,23.776884,147.29,147.28,26.72422213]
[1728861565757,1.34983391,147.32,147.28,26.72422213]
[1728861565955,23.776884,147.31,147.29,3.46082213]
[1728861566459,23.776884,147.31,147.29,3.46562958]
[1728861567459,23.776884,147.31,147.28,23.2634]
[1728861567658,23.776884,147.31,147.29,3.46675564]
[1728861567973,23.776884,147.31,147.28,23.2634]
[1728861568129,23.776884,147.31,147.29,3.46675563]
[1728861568328,23.776884,147.31,147.28,23.2634]
[1728861568551,23.776884,147.31,147.29,3.46779027]
[1728861568738,23.776884,147.31,147.28,23.2634]
[1728861568951,23.776884,147.31,147.29,3.46778961]
[1728861569155,1.34983391,147.3,147.28,23.2634]
[1728861569335,25.12671791,147.3,147.29,3.46887189]
[1728861569649,25.12671791,147.3,147.29,10.25817189]
[1728861570558,25.12671791,147.3,147.29,3.46887189]
[1728861570749,23.776884,147.29,147.28,16.4737]
[1728861571450,23.776884,147.29,147.28,19.94342708]
[1728861572672,23.776884,147.29,147.28,26.73312708]
[1728861574178,23.776884,147.29,147.28,23.2634]
[1728861574370,23.776884,147.29,147.28,26.73332054]
[1728861574676,23.776884,147.29,147.28,3.46992054]
[1728861574869,25.12671791,147.29,147.28,3.46992054]
[1728861575860,23.776884,147.29,147.28,3.46992054]
[1728861576261,23.776884,147.29,147.28,10.25962054]
[1728861576657,23.776884,147.29,147.28,21.40606954]
[1728861577078,1.34983391,147.33,147.29,6.7891]
[1728861577274,1.34983391,147.33,147.31,6.7884]
[1728861577475,15.9592,147.35,147.33,6.7873]
[1728861577476,1.34983391,147.35,147.33,6.7873]
[1728861577781,1.34983391,147.37,147.33,6.7873]
[1728861578583,23.776884,147.36,147.33,6.7873]
[1728861578786,23.776884,147.34,147.33,6.7873]
[1728861578956,23.776884,147.34,147.33,10.25591081]
[1728861579585,23.776884,147.34,147.33,3.46861081]
[1728861581465,23.776884,147.34,147.32,17.934249]
[1728861581672,23.776884,147.37,147.33,17.933849]
[1728861581983,23.776884,147.35,147.33,17.933849]
[1728861584967,23.776884,147.35,147.33,11.146449]
[1728861585173,23.776884,147.35,147.34,6.787]
[1728861587664,23.776884,147.35,147.33,17.933749]
[1728861591059,23.776884,147.35,147.32,28.115349]
[1728861591265,1.34983391,147.34,147.32,23.7567]
[1728861591470,1.34983391,147.35,147.32,23.7567]
[1728861591688,23.776884,147.34,147.32,23.7567]
[1728861592571,23.776884,147.35,147.32,23.7567]
[1728861592788,25.12671791,147.35,147.32,23.7567]
[1728861593394,23.776884,147.36,147.33,6.7874]
[1728861593569,25.12671791,147.36,147.33,6.7874]
[1728861595271,25.12671791,147.37,147.33,6.7874]
[1728861599190,25.12671791,147.37,147.33,17.933849]
[1728861603900,25.12671791,147.37,147.34,6.7869]
[1728861604208,25.12671791,147.38,147.34,6.7869]
[1728861605299,6.7838,147.41,147.36,6.7857]
[1728861605473,1.34983391,147.4,147.36,1.35702919]
[1728861605674,8.13313391,147.42,147.38,11.146449]
[1728861607198,1.34983391,147.42,147.38,17.931249]
[1728861607496,1.34983391,147.42,147.39,6.7844]
[1728861607675,1.34983391,147.43,147.4,6.784]
[1728861607876,1.34983391,147.44,147.4,6.784]
[1728861608492,8.13223391,147.44,147.39,6.7846]
[1728861608800,1.34983391,147.44,147.4,6.7838]
[1728861608987,1.34983391,147.43,147.4,6.7838]
[1728861609169,23.776884,147.42,147.39,6.7846]
[1728861610070,1.34983391,147.41,147.38,34.893749]
[1728861610283,1.34983391,147.41,147.38,16.9622]
[1728861610694,23.776884,147.4,147.36,17.932449]
[1728861610886,1.34983391,147.39,147.36,17.932449]
[1728861611387,1.34983391,147.39,147.36,6.786]
[1728861613998,23.776884,147.4,147.36,17.932449]
[1728861614201,23.776884,147.38,147.36,6.786]
[1728861614417,23.776884,147.38,147.35,16.9661]
[1728861615305,23.776884,147.39,147.35,23.7526]
[1728861615512,1.34983391,147.38,147.35,23.7526]
[1728861616383,23.776884,147.37,147.35,16.9661]
[1728861616704,23.776884,147.37,147.33,6.7873]
[1728861617177,1.34983391,147.36,147.33,6.7873]
[1728861617500,23.776884,147.37,147.33,6.7873]
[1728861617703,25.12671791,147.37,147.33,6.7873]
[1728861619080,31.91261791,147.37,147.32,23.7572]
[1728861619283,1.34983391,147.36,147.32,23.7572]
[1728861619786,23.776884,147.35,147.32,23.7572]
[1728861619995,1.34983391,147.36,147.32,23.7572]
[1728861620201,23.776884,147.35,147.32,23.7572]
[1728861622399,1.34983391,147.34,147.32,23.7572]
[1728861622608,23.776884,147.33,147.3,6.7887]
[1728861622785,23.776884,147.33,147.31,6.7883]
[1728861623289,23.776884,147.34,147.31,6.7883]
[1728861623605,25.12671791,147.34,147.31,6.7883]
[1728861626211,25.12671791,147.34,147.31,17.934749]
[1728861626703,23.776884,147.34,147.32,6.7878]
[1728861626901,23.776884,147.35,147.32,6.7878]
[1728861630709,23.776884,147.35,147.33,17.933449]
[1728861630912,23.776884,147.36,147.34,6.7869]
[1728861631121,23.776884,147.36,147.33,17.933749]
[1728861632394,1.34983391,147.35,147.33,17.933749]
[1728861632596,1.34983391,147.35,147.33,6.7873]
[1728861633392,23.776884,147.37,147.33,6.7873]
[1728861633592,23.776884,147.35,147.33,6.7873]
[1728861634111,23.776884,147.35,147.32,6.7878]
[1728861634516,1.34983391,147.34,147.31,34.904849]
[1728861635021,23.776884,147.33,147.31,23.7584]
[1728861635210,23.776884,147.33,147.31,16.9702]
[1728861635531,23.776884,147.34,147.31,16.9702]
[1728861635696,25.12671791,147.34,147.31,16.9702]
[1728861635898,23.776884,147.34,147.31,16.9702]
[1728861636422,23.776884,147.34,147.31,23.7585]
[1728861637303,23.776884,147.35,147.31,23.7585]
[1728861637512,25.12671791,147.35,147.31,23.7585]
[1728861638494,1.34983391,147.34,147.31,23.7585]
[1728861638698,23.776884,147.33,147.31,23.7585]
[1728861641101,23.776884,147.33,147.31,34.904949]
[1728861643044,23.776884,147.33,147.31,28.116649]
[1728861643206,23.776884,147.39,147.32,1.35747115]
[1728861643404,23.776884,147.37,147.33,6.7873]
[1728861643606,23.776884,147.35,147.33,6.7873]
[1728861644829,23.776884,147.36,147.33,6.7873]
[1728861645032,1.34983391,147.35,147.33,6.7873]
[1728861647541,1.34983391,147.35,147.32,6.7878]
[1728861653552,23.776884,147.36,147.32,11.146449]
[1728861653851,23.776884,147.36,147.34,6.7866]
[1728861654151,23.776884,147.37,147.34,6.7866]
[1728861657655,23.776884,147.37,147.35,16.9658]
[1728861657832,1.34983391,147.4,147.36,6.7861]
[1728861658151,1.34983391,147.4,147.36,17.932549]
[1728861659041,23.776884,147.39,147.36,17.932549]
[1728861660045,1.34983391,147.38,147.36,6.7861]
[1728861660245,1.34983391,147.38,147.35,23.7522]
[1728861661339,23.776884,147.37,147.32,28.115749]
[1728861661532,23.776884,147.35,147.32,23.7572]
[1728861661740,23.776884,147.35,147.32,16.9693]
[1728861662048,23.776884,147.35,147.33,6.7874]
[1728861662253,6.7852,147.38,147.33,6.7874]
[1728861662450,23.776884,147.36,147.33,6.7874]
[1728861663172,23.776884,147.36,147.33,8.14470663]
[1728861664050,23.776884,147.36,147.33,6.7874]
[1728861664247,23.776884,147.34,147.31,6.7884]
[1728861665364,23.776884,147.35,147.31,6.7884]
[1728861665544,23.776884,147.33,147.31,6.7884]
[1728861666369,23.776884,147.38,147.31,11.146449]
[1728861666545,23.776884,147.36,147.33,6.7874]
[1728861667466,25.12671791,147.36,147.33,6.7874]
[1728861668455,25.12671791,147.36,147.31,28.116249]
[1728861668658,25.12671791,147.36,147.31,23.7581]
[1728861668962,23.776884,147.34,147.31,16.9698]
[1728861669853,1.34983391,147.33,147.31,16.9698]
[1728861670371,23.776884,147.34,147.31,23.7581]
[1728861672244,23.776884,147.34,147.31,34.904549]
[1728861675972,23.776884,147.35,147.31,34.904549]
[1728861676167,25.12671791,147.35,147.31,34.904549]
[1728861676360,31.91331791,147.35,147.31,16.9698]
[1728861676560,25.12671791,147.35,147.31,16.9698]
[1728861678362,25.12671791,147.35,147.31,23.758]
[1728861678562,25.12671791,147.35,147.31,34.904449]
[1728861679559,25.12671791,147.35,147.32,6.7877]
[1728861679760,25.12671791,147.36,147.32,6.7877]
[1728861680462,25.12671791,147.36,147.25,7.08470367]
[1728861680660,25.12671791,147.36,147.25,11.146449]
[1728861680856,25.12671791,147.36,147.26,6.7903]
[1728861680857,6.7885,147.31,147.26,6.7903]
[1728861681055,23.776884,147.29,147.26,6.7903]
[1728861681577,23.776884,147.3,147.26,6.7903]
[1728861681765,25.12671791,147.3,147.26,6.7903]
[1728861682755,25.12671791,147.3,147.27,3.46850112]
[1728861682966,25.12671791,147.3,147.28,3.46850112]
[1728861683184,25.12671791,147.3,147.29,3.46850112]
[1728861683375,25.12671791,147.3,147.27,3.46850112]
[1728861683579,25.12671791,147.3,147.28,3.46850112]
[1728861683895,25.12671791,147.3,147.26,6.7903]
[1728861684180,25.12671791,147.3,147.27,3.46731109]
[1728861684383,25.12671791,147.3,147.28,3.46731109]
[1728861684586,25.12671791,147.3,147.26,6.7903]
[1728861684787,25.12671791,147.3,147.27,3.46618431]
[1728861684984,25.12671791,147.3,147.28,3.46618431]
[1728861685282,25.12671791,147.3,147.26,6.7903]
[1728861685471,25.12671791,147.3,147.27,3.46527471]
[1728861685669,25.12671791,147.3,147.28,3.46527471]
[1728861685869,25.12671791,147.3,147.26,6.7903]
[1728861686074,23.776884,147.28,147.27,3.46543529]
[1728861686278,23.776884,147.28,147.25,16.9774]
[1728861686279,6.7919,147.24,147.11,47.33968179]
[1728861686488,1.34983391,147.23,147.18,6.7943]
[1728861686781,23.776884,147.22,147.21,7.6384797]
[1728861688176,6.7916,147.24,147.21,0.8454797]
[1728861688359,23.776884,147.22,147.21,0.8454797]
[1728861694564,1.34983391,147.24,147.21,7.6382797]
[1728861694766,23.776884,147.23,147.21,7.6382797]
[1728861695885,23.776884,147.24,147.21,7.6382797]
[1728861696810,1.34983391,147.23,147.21,7.6382797]
[1728861696974,30.0,147.22,147.21,7.6382797]
[1728861697880,23.776884,147.25,147.21,7.6382797]
[1728861698083,25.12671791,147.25,147.21,7.6382797]
[1728861698391,25.12671791,147.25,147.22,6.7925]
[1728861698692,23.776884,147.25,147.23,6.792]
[1728861699080,1.34983391,147.27,147.25,6.791]
[1728861699279,8.13913391,147.29,147.24,17.937949]
[1728861699471,8.13913391,147.29,147.24,23.7697]
[1728861699866,1.34983391,147.31,147.25,1.35814728]
[1728861700107,1.34983391,147.31,147.28,6.7897]
[1728861700598,1.34983391,147.31,147.28,11.146449]
[1728861700898,8.13633391,147.35,147.29,6.7888]
[1728861701073,8.13633391,147.35,147.29,16.9728]
[1728861701274,8.13633391,147.35,147.3,6.7886]
[1728861701876,1.34983391,147.35,147.31,6.7882]
[1728861702792,1.34983391,147.35,147.32,6.7877]
[1728861703178,1.34983391,147.35,147.31,6.7883]
[1728861703497,6.7855,147.38,147.32,19.29178771]
[1728861703669,1.34983391,147.37,147.33,6.7874]
[1728861704995,1.34983391,147.37,147.34,6.7869]
[1728861705211,1.34983391,147.39,147.34,6.7869]
[1728861705495,1.34983391,147.39,147.34,17.933349]
[1728861705687,1.34983391,147.39,147.35,1.3572121]
[1728861705890,1.34983391,147.39,147.35,8.1436121]
[1728861706295,1.34983391,147.39,147.36,6.7859]
[1728861706605,1.34983391,147.43,147.37,1.35706285]
[1728861706771,1.34983391,147.43,147.39,6.7846]
[1728861707493,1.34983391,147.43,147.41,6.7836]
[1728861707691,1.34983391,147.45,147.4,6.7842]
[1728861708108,8.13193391,147.45,147.4,6.7842]
[1728861708411,8.13193391,147.45,147.39,6.7846]
[1728861708583,1.34983391,147.44,147.39,6.7846]
[1728861709184,23.776884,147.43,147.39,6.7846]
[1728861709382,1.34983391,147.44,147.41,6.7837]
[1728861709590,1.34983391,147.47,147.43,6.7828]
[1728861709992,1.34983391,147.51,147.42,1.35665366]
[1728861710183,6.7796,147.5,147.45,6.7819]
[1728861710389,1.34983391,147.49,147.45,6.7819]
[1728861710590,1.34983391,147.5,147.45,8.1380791]
[1728861711708,1.34983391,147.5,147.46,8.137576]
[1728861712005,1.34983391,147.54,147.47,6.7809]
[1728861712221,6.7787,147.53,147.47,6.7809]
[1728861712512,1.34983391,147.52,147.47,6.7809]
[1728861712886,1.34983391,147.52,147.46,34.39761923]
[1728861713185,1.34983391,147.59,147.52,6.7787]
[1728861713389,2.52963462,147.59,147.52,6.7787]
[1728861713583,8.12533391,147.59,147.53,6.7782]
[1728861715615,23.776884,147.58,147.53,6.7782]
[1728861715800,1.34983391,147.57,147.53,6.7782]
[1728861716305,25.12671791,147.58,147.53,6.7782]
[1728861716682,25.12671791,147.58,147.54,6.7777]
[1728861716887,1.17964204,147.61,147.52,34.38971923]
[1728861717090,8.12483391,147.6,147.54,6.7777]
[1728861717986,23.776884,147.58,147.53,6.7782]
[1728861718188,1.34983391,147.57,147.53,6.7782]
[1728861718386,1.34983391,147.58,147.53,6.7782]
[1728861718609,1.34983391,147.59,147.53,6.7782]
[1728861718811,1.34983391,147.59,147.54,8.13302886]
[1728861719115,23.776884,147.58,147.54,6.7777]
[1728861719488,1.34983391,147.57,147.54,6.7777]
[1728861719706,1.34983391,147.57,147.52,16.9457]
[1728861719910,1.34983391,147.57,147.52,23.7239]
[1728861720514,1.34983391,147.57,147.53,6.7782]
[1728861721225,1.34983391,147.57,147.52,16.9457]
[1728861721509,30.553784,147.56,147.5,6.7796]
[1728861721820,1.34983391,147.55,147.5,6.7796]
[1728861722325,8.12723391,147.55,147.49,29.7476]
[1728861722531,23.776884,147.54,147.5,6.7796]
[1728861728508,23.776884,147.54,147.49,16.9501]
[1728861728509,23.776884,147.52,147.49,16.9501]
[1728861729728,6.7784,147.53,147.49,16.9501]
[1728861730113,1.34983391,147.52,147.49,16.9501]
[1728861732427,6.7784,147.53,147.49,16.9501]
[1728861732728,1.34983391,147.52,147.49,16.9501]
[1728861734029,6.7784,147.53,147.49,16.9501]
[1728861734531,6.7784,147.53,147.49,23.7302]
[1728861736233,1.34983391,147.52,147.49,23.7302]
[1728861736419,1.34983391,147.52,147.48,6.7805]
[1728861736734,6.7783,147.53,147.48,6.7805]
[1728861737339,1.34983391,147.52,147.48,6.7805]
[1728861738534,6.7783,147.53,147.48,6.7805]
[1728861738535,8.12813391,147.53,147.48,6.7805]
[1728861739641,6.7783,147.53,147.48,6.7805]
[1728861741116,1.34983391,147.52,147.49,6.78]
[1728861741424,8.12813391,147.53,147.49,6.78]
[1728861741626,1.34983391,147.54,147.5,8.13534301]
[1728861741935,1.34983391,147.54,147.5,6.7795]
[1728861744843,23.776884,147.53,147.49,6.78]
[1728861745142,1.34983391,147.52,147.49,6.78]
[1728861747415,23.776884,147.51,147.45,28.09714152]
[1728861747641,23.776884,147.51,147.47,6.7809]
[1728861749220,1.34983391,147.5,147.46,6.7814]
[1728861749540,30.556984,147.49,147.45,16.9544]
[1728861749746,1.34983391,147.48,147.45,16.9544]
[1728861750251,30.557084,147.49,147.45,16.9544]
[1728861750415,23.776884,147.49,147.45,23.7362]
[1728861752537,1.34983391,147.48,147.45,16.9544]
[1728861762554,30.557984,147.47,147.42,6.7832]
[1728861762853,1.34983391,147.46,147.42,6.7832]
[1728861763359,1.34983391,147.46,147.42,23.7413]
[1728861763733,1.34983391,147.46,147.42,16.9581]
[1728861763937,30.557984,147.47,147.43,6.7827]
[1728861764746,1.34983391,147.5,147.44,6.7824]
[1728861764945,23.776884,147.49,147.45,17.92424152]
[1728861767362,23.776884,147.49,147.45,19.28042384]
[1728861767951,1.34983391,147.48,147.44,23.7378]
[1728861768138,1.34983391,147.48,147.43,11.14274152]
[1728861768139,6.7815,147.46,147.41,6.7837]
[1728861768339,8.13133391,147.46,147.41,6.7837]
[1728861769358,6.7819,147.45,147.41,16.9593]
[1728861772160,1.34983391,147.44,147.38,28.10514152]
[1728861772366,1.34983391,147.44,147.38,34.89024152]
[1728861772666,23.776884,147.45,147.38,34.89024152]
[1728861772847,1.34983391,147.44,147.38,34.89024152]
[1728861773042,6.7832,147.43,147.38,23.7475]
[1728861774359,1.34983391,147.42,147.38,23.7475]
[1728861774569,8.13323391,147.42,147.38,16.9624]
[1728861775950,23.776884,147.41,147.38,16.9624]
[1728861776350,23.776884,147.41,147.36,22.4353]
[1728861776351,1.34983391,147.4,147.36,22.4353]
[1728861776565,6.7843,147.4,147.35,17.92914152]
[1728861776861,8.13413391,147.4,147.35,17.92914152]
[1728861777252,8.13413391,147.4,147.35,6.7864]
[1728861777446,8.13413391,147.4,147.35,23.7524]
[1728861780756,8.13413391,147.4,147.35,34.89514152]
[1728861780943,23.776884,147.41,147.37,11.14274152]
[1728861781150,23.776884,147.42,147.37,17.92794152]
[1728861781365,1.34983391,147.41,147.37,17.92794152]
[1728861782556,23.776884,147.42,147.39,6.7846]
[1728861782742,23.776884,147.42,147.39,17.92734152]
[1728861783471,23.776884,147.42,147.39,6.7846]
[1728861784561,8.13223391,147.44,147.39,6.7846]
[1728861784764,23.776884,147.43,147.4,8.14092596]
[1728861787267,23.776884,147.43,147.4,6.7842]
[1728861788562,1.34983391,147.42,147.39,16.9611]
[1728861788863,8.13323391,147.42,147.36,16.9647]
[1728861790467,8.13323391,147.42,147.37,6.7855]
[1728861790772,30.560684,147.41,147.37,6.7855]
[1728861790954,30.560684,147.41,147.36,16.9647]
[1728861790955,8.13443391,147.4,147.36,16.9647]
[1728861791279,8.13443391,147.4,147.36,23.7506]
[1728861792748,1.34983391,147.45,147.39,11.14274152]
[1728861792963,8.13203391,147.45,147.4,6.7842]
[1728861793282,1.34983391,147.45,147.4,6.7842]
[1728861793448,6.7825,147.44,147.4,6.7842]
[1728861793649,8.13233391,147.44,147.4,6.7842]
[1728861794655,25.12671791,147.43,147.4,6.7842]
[1728861795170,25.12671791,147.43,147.38,23.7471]
[1728861795393,31.90991791,147.43,147.38,23.7471]
[1728861796467,25.12671791,147.43,147.35,16.9661]
[1728861797374,6.7839,147.41,147.36,6.7857]
[1728861797579,1.34983391,147.4,147.36,6.7857]
[1728861798078,6.7839,147.41,147.36,6.7857]
[1728861798579,1.34983391,147.4,147.36,6.7857]
[1728861798954,23.776884,147.41,147.37,6.7855]
[1728861799457,23.776884,147.41,147.38,6.7851]
[1728861799659,23.776884,147.44,147.39,1.35690348]
[1728861799873,23.776884,147.42,147.4,6.7842]
[1728861800071,6.7825,147.44,147.4,6.7842]
[1728861800460,1.34983391,147.43,147.4,6.7842]
[1728861800982,8.13233391,147.44,147.4,6.7842]
[1728861801982,6.7825,147.44,147.4,6.7842]
[1728861802978,1.34983391,147.43,147.39,6.7846]
[1728861804590,8.13273391,147.43,147.38,17.92774152]
[1728861805984,30.560184,147.42,147.37,23.7488]
[1728861806171,1.34983391,147.41,147.37,23.7488]
[1728861806487,8.13373391,147.41,147.37,23.7488]
[1728861809694,1.34983391,147.41,147.37,23.7488]
[1728861809866,30.560284,147.42,147.37,23.7488]
[1728861810991,1.34983391,147.41,147.37,23.7488]
[1728861812188,23.776884,147.4,147.34,16.967]
[1728861812390,30.562084,147.38,147.34,16.967]
[1728861812688,8.13553391,147.37,147.33,6.7874]
[1728861812870,1.34983391,147.37,147.33,6.7874]
[1728861814868,8.13543391,147.37,147.33,6.7874]
[1728861815469,23.776884,147.36,147.32,6.7879]
[1728861815672,1.34983391,147.35,147.31,23.7587]
[1728861815870,30.563084,147.36,147.32,6.7878]
[1728861816570,23.776884,147.36,147.32,6.7878]
[1728861820677,1.34983391,147.4,147.32,11.14274152]
[1728861820885,1.34983391,147.4,147.36,11.14274152]
[1728861821197,1.34983391,147.43,147.4,6.7841]
[1728861821492,1.34983391,147.44,147.4,6.7841]
[1728861822073,8.13223391,147.44,147.39,17.92734152]
[1728861822271,6.7829,147.43,147.39,17.92734152]
[1728861822486,1.34983391,147.42,147.39,17.92734152]
[1728861823279,25.12671791,147.43,147.39,17.92734152]
[1728861826108,1.18077227,147.48,147.41,11.14274152]